fUSD/lending_fUSD_20240903
["ID","MTS","AMOUNT","RATE_DAILY","PERIOD"]
[337050424,1725381033741,-500.0,0.00014329,2]
[337050425,1725381033751,-500.0,0.00014329,2]
[337050426,1725381033762,-500.0,0.00014329,2]
[337050427,1725381033773,-500.0,0.00014329,2]
[337050428,1725381033782,-781.92,0.00014329,2]
[337050429,1725381033792,-1263.98,0.00014329,2]
[337050430,1725381033801,-500.0,0.00014329,2]
[337050431,1725381033811,-1954.2,0.00014329,2]
[337050432,1725381033820,-500.0,0.00014329,2]
[337050433,1725381033830,-1954.2,0.00014329,2]
[337050434,1725381033839,-500.0,0.00014329,2]
[337050435,1725381033849,-500.0,0.00014329,2]
[337050436,1725381033859,-1071.56,0.00014329,2]
[337050437,1725381033868,-500.0,0.00014329,2]
[337050438,1725381033878,-502.58,0.00014329,2]
[337050439,1725381033888,-502.58,0.00014329,2]
[337050440,1725381033902,-287.08595276,0.00014329,2]
[337050441,1725381033912,-500.0,0.00014329,2]
[337050442,1725381033921,-883.86,0.00014329,2]
[337050443,1725381033932,-500.0,0.00014329,2]
[337050444,1725381033941,-573.91,0.00014329,2]
[337050445,1725381033951,-500.0,0.00014329,2]
[337050446,1725381033961,-500.0,0.00014329,2]
[337050447,1725381033971,-500.0,0.00014329,2]
[337050448,1725381033981,-500.0,0.00014329,2]
[337050449,1725381033991,-500.0,0.00014329,2]
[337050450,1725381034000,-500.0,0.00014329,2]
[337050451,1725381034011,-847.62,0.00014329,2]
[337050452,1725381034021,-500.0,0.00014329,2]
[337050453,1725381034031,-500.0,0.00014329,2]
[337050454,1725381034041,-500.0,0.00014329,2]
[337050455,1725381034051,-500.0,0.00014329,2]
[337050456,1725381034060,-500.0,0.00014329,2]
[337050457,1725381034071,-509.85,0.00014329,2]
[337050458,1725381034080,-500.0,0.00014329,2]
[337050459,1725381034090,-2419.76,0.00014329,2]
[337050460,1725381034100,-500.0,0.00014329,2]
[337050461,1725381034110,-440.28511305,0.00014329,2]
[337050462,1725381034120,-1848.22,0.00014329,2]
[337050463,1725381034130,-1848.22,0.00014329,2]
[337050464,1725381034140,-500.0,0.00014329,2]
[337050465,1725381034152,-2690.29,0.00014329,2]
[337050466,1725381034162,-507.64553647,0.00014329,2]
[337050467,1725381034172,-929.15,0.00014329,2]
[337050468,1725381034182,-929.15,0.00014329,2]
[337050469,1725381034191,-1999.02,0.00014329,2]
[337050470,1725381034200,-500.0,0.00014329,2]
[337050471,1725381034210,-1955.3,0.00014329,2]
[337050472,1725381034219,-500.0,0.00014329,2]
[337050473,1725381034228,-2245.65,0.00014329,2]
[337050474,1725381034238,-2245.65,0.00014329,2]
[337050475,1725381034248,-909.28,0.00014329,2]
[337050476,1725381034259,-909.28,0.00014329,2]
[337050477,1725381034269,-1013.7,0.00014329,2]
[337050478,1725381034278,-1013.7,0.00014329,2]
[337050479,1725381034522,-500.0,0.00014329,2]
[337050480,1725381034532,-500.0,0.00014329,2]
[337050481,1725381034543,-500.0,0.00014329,2]
[337050482,1725381034553,-967.94,0.00014329,2]
[337050483,1725381034563,-967.94,0.00014329,2]
[337050484,1725381034573,-404.40813991,0.00014329,2]
[337050485,1725381034583,-908.22,0.00014329,2]
[337050486,1725381034593,-908.22,0.00014329,2]
[337050487,1725381034603,-925.63,0.00014329,2]
[337050488,1725381034613,-925.63,0.00014329,2]
[337050489,1725381034622,-500.0,0.00014329,2]
[337050490,1725381034633,-1713.42,0.00014329,2]
[337050491,1725381034643,-1713.42,0.00014329,2]
[337050492,1725381034657,-500.0,0.00014329,2]
[337050493,1725381034667,-500.0,0.00014329,2]
[337050494,1725381034678,-500.0,0.00014329,2]
[337050495,1725381034691,-500.0,0.00014329,2]
[337050496,1725381034701,-1710.94,0.00014329,2]
[337050497,1725381034711,-1710.94,0.00014329,2]
[337050498,1725381034723,-569.53,0.00014329,2]
[337050499,1725381034733,-569.53,0.00014329,2]
[337050500,1725381034742,-1329.38,0.00014329,2]
[337050501,1725381034752,-2357.99,0.00014329,2]
[337050502,1725381034764,-2357.99,0.00014329,2]
[337050503,1725381034774,-500.0,0.00014329,2]
[337050504,1725381034783,-500.0,0.00014329,2]
[337050505,1725381034793,-500.0,0.00014329,2]
[337050506,1725381034803,-500.0,0.00014329,2]
[337050507,1725381034813,-500.0,0.00014329,2]
[337050508,1725381034823,-500.0,0.00014329,2]
[337050509,1725381034832,-1234.27,0.00014329,2]
[337050510,1725381034842,-1228.33,0.00014329,2]
[337050511,1725381034851,-1228.33,0.00014329,2]
[337050512,1725381034861,-1191.06,0.00014329,2]
[337050513,1725381034871,-3648.41,0.00014329,2]
[337050514,1725381034880,-1265.4,0.00014329,2]
[337050515,1725381034890,-510.61,0.00014329,2]
[337050516,1725381034901,-510.61,0.00014329,2]
[337050517,1725381034911,-5720.45,0.00014329,2]
[337050518,1725381034920,-5720.45,0.00014329,2]
[337050519,1725381034930,-5619.24,0.00014329,2]
[337050520,1725381034940,-5720.45,0.00014329,2]
[337050521,1725381034950,-13693.09,0.00014329,2]
[337050522,1725381034960,-13693.09,0.00014329,2]
[337050523,1725381034969,-855.4,0.00014329,2]
[337050524,1725381034978,-855.4,0.00014329,2]
[337050525,1725381034987,-503.16872189,0.00014329,2]
[337050526,1725381034996,-500.0,0.00014329,2]
[337050527,1725381035006,-500.0,0.00014329,2]
[337050528,1725381035016,-500.0,0.00014329,2]
[337050529,1725381035025,-5155.52,0.00014329,2]
[337050530,1725381035035,-2619.94,0.00014329,2]
[337050531,1725381035044,-2619.94,0.00014329,2]
[337050532,1725381035054,-2619.94,0.00014329,2]
[337050533,1725381035064,-2192.09734555,0.00014329,2]
[337050534,1725381035114,-289.8028466,0.00014329,2]
[337050535,1725381035126,-138.03980785,0.00014329,2]
[337050536,1725381035136,-461.96019215,0.00014329,2]
[337050537,1725381037558,-462.45588772,0.0001408,2]
[337050538,1725381037569,-264.54053448,0.0001408,2]
[337050540,1725381037613,-14798.35396183,0.0001408,2]
[337050541,1725381037625,-11216.25702667,0.0001408,2]
[337050542,1725381037638,-7101.9376893,0.0001408,2]
[337050543,1725381037649,-500.0,0.0001423,2]
[337050544,1725381037658,-500.0,0.0001423,2]
[337050545,1725381037668,-689.58,0.00014328,2]
[337050546,1725381037678,-689.58,0.00014328,2]
[337050547,1725381037692,-38.03980785,0.00014329,2]
[337050548,1725381037701,-500.0,0.00014329,2]
[337050549,1725381037711,-6592.35,0.00014329,2]
[337050550,1725381037720,-3959.39910285,0.00014329,2]
[337050551,1725381037733,-2632.95089715,0.00014329,2]
[337050552,1725381037742,-3161.94910285,0.00014329,2]
[337050553,1725381037755,-315.94706267,0.00014329,2]
[337050554,1725381037768,-3114.45383448,0.00014329,2]
[337050555,1725381037777,-814.69,0.00014329,2]
[337050556,1725381037787,-814.69,0.00014329,2]
[337050557,1725381037796,-1726.37449849,0.00014329,2]
[337050558,1725381037811,-2219.93550151,0.00014329,2]
[337050559,1725381037821,-3946.31,0.00014329,2]
[337050560,1725381037831,-500.0,0.00014329,2]
[337050561,1725381037841,-698.84,0.00014329,2]
[337050562,1725381037850,-500.0,0.00014329,2]
[337050563,1725381037860,-502.53391581,0.00014329,2]
[337050564,1725381037869,-2423.43,0.00014329,2]
[337050565,1725381037879,-2423.43,0.00014329,2]
[337050566,1725381037888,-628.38,0.00014329,2]
[337050567,1725381037899,-1163.13,0.00014329,2]
[337050569,1725381037908,-14554.12913498,0.00014329,2]
[337050572,1725381037924,-85272.26086502,0.00014329,2]
[337050574,1725381037933,-500.0,0.00014329,2]
[337050576,1725381037942,-500.0,0.00014329,2]
[337050578,1725381037952,-2479.86,0.00014329,2]
[337050580,1725381037961,-819.95,0.00014329,2]
[337050582,1725381037970,-2479.86,0.00014329,2]
[337050584,1725381037979,-819.95,0.00014329,2]
[337050586,1725381037988,-819.95,0.00014329,2]
[337050588,1725381037998,-819.95,0.00014329,2]
[337050590,1725381038006,-500.0,0.00014329,2]
[337050592,1725381038015,-959.68,0.00014329,2]
[337050594,1725381038025,-500.0,0.00014329,2]
[337050596,1725381038034,-1039.9,0.00014329,2]
[337050598,1725381038044,-17147.95,0.00014329,2]
[337050600,1725381038053,-995.83,0.00014329,2]
[337050602,1725381038063,-17147.95,0.00014329,2]
[337050604,1725381038072,-502.13314921,0.00014329,2]
[337050605,1725381038081,-6127.21,0.00014329,2]
[337050607,1725381038090,-6127.21,0.00014329,2]
[337050609,1725381038099,-6127.21,0.00014329,2]
[337050611,1725381038108,-6127.21,0.00014329,2]
[337050613,1725381038118,-782.59,0.00014329,2]
[337050615,1725381038127,-3911.24,0.00014329,2]
[337050616,1725381038136,-3911.24,0.00014329,2]
[337050618,1725381038145,-500.0,0.00014329,2]
[337050620,1725381038157,-500.0,0.00014329,2]
[337050622,1725381038166,-500.0,0.00014329,2]
[337050624,1725381038175,-500.0,0.00014329,2]
[337050626,1725381038184,-500.0,0.00014329,2]
[337050628,1725381038193,-500.0,0.00014329,2]
[337050630,1725381038202,-2421.96,0.00014329,2]
[337050632,1725381038211,-7506.14,0.00014329,2]
[337050634,1725381038220,-7506.14,0.00014329,2]
[337050636,1725381038230,-14785.1,0.00014329,2]
[337050638,1725381038239,-14785.1,0.00014329,2]
[337050640,1725381038247,-1364.7,0.00014329,2]
[337050642,1725381038257,-14785.1,0.00014329,2]
[337050644,1725381038266,-1364.7,0.00014329,2]
[337050646,1725381038275,-14785.1,0.00014329,2]
[337050648,1725381038285,-503.11923646,0.00014329,2]
[337050650,1725381038295,-500.0,0.00014329,2]
[337050651,1725381038304,-500.0,0.00014329,2]
[337050652,1725381038313,-500.0,0.00014329,2]
[337050653,1725381038322,-500.0,0.00014329,2]
[337050654,1725381038332,-500.0,0.00014329,2]
[337050655,1725381038341,-11003.86,0.00014329,2]
[337050656,1725381038350,-11003.86,0.00014329,2]
[337050658,1725381038359,-991.69,0.00014329,2]
[337050659,1725381038368,-1287.89,0.00014329,2]
[337050660,1725381038377,-500.0,0.00014329,2]
[337050661,1725381038387,-500.0,0.00014329,2]
[337050662,1725381038396,-3457.57,0.00014329,2]
[337050663,1725381038406,-3457.57,0.00014329,2]
[337050664,1725381038415,-3457.57,0.00014329,2]
[337050665,1725381038425,-3457.57,0.00014329,2]
[337050666,1725381038434,-3457.57,0.00014329,2]
[337050667,1725381038443,-3457.57,0.00014329,2]
[337050668,1725381038453,-7482.36,0.00014329,2]
[337050669,1725381038462,-3457.57,0.00014329,2]
[337050670,1725381038471,-7482.36,0.00014329,2]
[337050671,1725381038481,-3457.57,0.00014329,2]
[337050672,1725381038490,-7482.36,0.00014329,2]
[337050673,1725381038499,-17679.92,0.00014329,2]
[337050674,1725381038509,-3457.57,0.00014329,2]
[337050675,1725381038518,-3457.57,0.00014329,2]
[337050676,1725381038527,-3457.57,0.00014329,2]
[337050677,1725381038537,-3457.57,0.00014329,2]
[337050678,1725381038546,-2859.49,0.00014329,2]
[337050679,1725381038555,-2859.49,0.00014329,2]
[337050680,1725381038564,-500.0,0.00014329,2]
[337050681,1725381038573,-1713.52,0.00014329,2]
[337050682,1725381038583,-593.78,0.00014329,2]
[337050683,1725381038592,-48423.92,0.00014329,2]
[337050684,1725381038602,-593.78,0.00014329,2]
[337050685,1725381038611,-873.25,0.00014329,2]
[337050686,1725381038621,-873.25,0.00014329,2]
[337050687,1725381038630,-500.0,0.00014329,2]
[337050688,1725381038639,-500.0,0.00014329,2]
[337050689,1725381038649,-500.0,0.00014329,2]
[337050690,1725381038658,-500.0,0.00014329,2]
[337050691,1725381038668,-500.0,0.00014329,2]
[337050692,1725381038679,-500.0,0.00014329,2]
[337050693,1725381038691,-500.0,0.00014329,2]
[337050694,1725381038700,-442.20923431,0.00014329,2]
[337050695,1725381038709,-500.0,0.00014329,2]
[337050696,1725381038719,-500.0,0.00014329,2]
[337050697,1725381038728,-7237.51,0.00014329,2]
[337050698,1725381038737,-11525.38,0.00014329,2]
[337050699,1725381038746,-7237.51,0.00014329,2]
[337050700,1725381038756,-7237.51,0.00014329,2]
[337050701,1725381038769,-638.94,0.00014329,2]
[337050702,1725381038780,-7237.51,0.00014329,2]
[337050703,1725381038791,-638.94,0.00014329,2]
[337050704,1725381038802,-4195.87,0.00014329,2]
[337050705,1725381038813,-500.0,0.00014329,2]
[337050706,1725381038822,-4195.87,0.00014329,2]
[337050707,1725381038832,-631.36515178,0.00014329,2]
[337050708,1725381038842,-500.0,0.00014329,2]
[337050709,1725381038853,-9210.83,0.00014329,2]
[337050710,1725381038864,-9210.83,0.00014329,2]
[337050711,1725381038873,-500.0,0.00014329,2]
[337050712,1725381038882,-9210.83,0.00014329,2]
[337050713,1725381038891,-9210.83,0.00014329,2]
[337050714,1725381038901,-3664.1,0.00014329,2]
[337050715,1725381038910,-500.0,0.00014329,2]
[337050716,1725381038919,-9649.74,0.00014329,2]
[337050717,1725381038928,-541.39163853,0.00014329,2]
[337050718,1725381038937,-500.0,0.00014329,2]
[337050719,1725381038946,-9649.74,0.00014329,2]
[337050720,1725381038955,-500.0,0.00014329,2]
[337050721,1725381038964,-500.0,0.00014329,2]
[337050722,1725381038973,-500.0,0.00014329,2]
[337050723,1725381038982,-2479.7,0.00014329,2]
[337050724,1725381038991,-2479.7,0.00014329,2]
[337050725,1725381039000,-500.0,0.00014329,2]
[337050726,1725381039009,-500.0,0.00014329,2]
[337050727,1725381039018,-500.0,0.00014329,2]
[337050728,1725381039027,-3376.51,0.00014329,2]
[337050729,1725381039036,-3376.51,0.00014329,2]
[337050730,1725381039045,-550.57763241,0.00014329,2]
[337050731,1725381039054,-591.66691673,0.00014329,2]
[337050732,1725381039064,-5210.82,0.00014329,2]
[337050733,1725381039074,-5210.82,0.00014329,2]
[337050734,1725381039083,-1556.8,0.00014329,2]
[337050735,1725381039092,-1556.8,0.00014329,2]
[337050736,1725381039101,-500.0,0.00014329,2]
[337050737,1725381039111,-500.0,0.00014329,2]
[337050738,1725381039120,-1556.8,0.00014329,2]
[337050739,1725381039130,-1556.8,0.00014329,2]
[337050740,1725381039142,-1556.8,0.00014329,2]
[337050741,1725381039154,-1556.8,0.00014329,2]
[337050742,1725381039163,-1556.8,0.00014329,2]
[337050743,1725381039173,-1556.8,0.00014329,2]
[337050744,1725381039182,-1556.8,0.00014329,2]
[337050745,1725381039191,-1556.8,0.00014329,2]
[337050746,1725381039201,-1556.8,0.00014329,2]
[337050747,1725381039210,-500.0,0.00014329,2]
[337050748,1725381039220,-1003.57,0.00014329,2]
[337050749,1725381039229,-1556.8,0.00014329,2]
[337050750,1725381039239,-10353.25,0.00014329,2]
[337050751,1725381039251,-10353.25,0.00014329,2]
[337050752,1725381039261,-500.0,0.00014329,2]
[337050753,1725381039270,-500.0,0.00014329,2]
[337050754,1725381039280,-2192.72,0.00014329,2]
[337050755,1725381039292,-2192.72,0.00014329,2]
[337050756,1725381039302,-2192.72,0.00014329,2]
[337050757,1725381039312,-2192.72,0.00014329,2]
[337050758,1725381039321,-553.30477182,0.00014329,2]
[337050759,1725381039330,-500.0,0.00014329,2]
[337050760,1725381039339,-500.0,0.00014329,2]
[337050761,1725381039348,-500.0,0.00014329,2]
[337050762,1725381039358,-500.0,0.00014329,2]
[337050763,1725381039367,-24641.63,0.00014329,2]
[337050764,1725381039377,-7918.48,0.00014329,2]
[337050765,1725381039386,-7918.48,0.00014329,2]
[337050766,1725381039395,-500.0,0.00014329,2]
[337050768,1725381039413,-545.07356064,0.00014329,2]
[337050769,1725381039423,-500.0,0.00014329,2]
[337050770,1725381039432,-2582.39,0.00014329,2]
[337050771,1725381039441,-2582.39,0.00014329,2]
[337050772,1725381039450,-1682.86,0.00014329,2]
[337050773,1725381039459,-9098.6,0.00014329,2]
[337050774,1725381039468,-9098.6,0.00014329,2]
[337050775,1725381039478,-356.40135313,0.00014329,2]
[337050776,1725381039501,-1932.68557548,0.00014329,2]
[337050778,1725381039778,-272.58543566,0.00014329,2]
[337050779,1725381039790,-1160.5,0.00014329,2]
[337050830,1725381045773,-1417.03857035,0.0001423,2]
[337050841,1725381058327,11504.0,0.000103,5]
[337050842,1725381166858,870.84,0.00011379,2]
[337050843,1725381224854,157.62,0.00010959,2]
[337050844,1725381310180,4693.0,0.000103,5]
[337050845,1725381388377,4607.6,0.00012979,2]
[337050846,1725381434423,151.59,0.00012945,2]
[337050847,1725381434653,151.59,0.00012948,2]
[337050848,1725381434878,151.59,0.00012952,2]
[337050849,1725381435109,151.59,0.00012956,2]
[337050850,1725381435384,151.59,0.00012959,2]
[337050851,1725381435629,151.59,0.00012963,2]
[337050852,1725381435852,151.59,0.00012966,2]
[337050853,1725381436252,151.59,0.0001297,2]
[337050854,1725381436292,151.59,0.00012973,2]
[337050855,1725381436501,151.59,0.00012977,2]
[337050856,1725381436776,151.59,0.00012981,2]
[337050857,1725381437043,151.59,0.00012984,2]
[337050858,1725381437288,151.59,0.00012988,2]
[337050859,1725381437567,151.59,0.00012991,2]
[337050860,1725381437756,151.59,0.00012995,2]
[337050861,1725381438007,151.59,0.00012999,2]
[337050862,1725381438214,151.59,0.00013002,2]
[337050863,1725381442704,1000.0,0.00012867,2]
[337050864,1725381452203,250.0,0.00012867,2]
[337050865,1725381462873,1493.98,0.00012858,2]
[337050866,1725381522724,3358.02,0.0001284,2]
[337050867,1725381532012,1319.45,0.00012943,2]
[337050868,1725381568446,561.13,0.00012826,2]
[337050869,1725381578759,780.0,0.00013005,30]
[337050870,1725381583007,200.0,0.0001285,2]
[337050871,1725381596588,1504.22,0.00012812,2]
[337050872,1725381633037,250.0,0.00012866,2]
[337050873,1725381683156,250.0,0.00012876,2]
[337050874,1725381738420,827.29,0.00011062,2]
[337050875,1725381758601,1359.12,0.00012919,2]
[337050876,1725381769752,9912.1,0.00012951,2]
[337050877,1725381803653,200.0,0.00012999,2]
[337050878,1725381815576,184.93,0.00012999,2]
[337050879,1725381912847,151.62886511,0.00012871,2]
[337050880,1725382014529,-151.59,0.00013006,2]
[337050881,1725382014552,-11868.33,0.00013008,2]
[337050882,1725382014575,-151.59,0.00013009,2]
[337050883,1725382014597,-9277.21,0.00013034,2]
[337050884,1725382014623,-1268.1981676,0.00013044,2]
[337050885,1725382014644,-825.41,0.00013044,2]
[337050886,1725382014665,-1457.6718324,0.00013063,2]
[337050887,1725382102038,-394.7481676,0.00013063,2]
[337050888,1725382102069,-161.85,0.00013073,2]
[337050889,1725382102098,-1000.0,0.00013081,2]
[337050890,1725382102131,-1209.10550796,0.00013082,2]
[337050898,1725382232137,-353.13449204,0.00013082,2]
[337050899,1725382232146,-250.0,0.00013128,2]
[337050900,1725382232156,-181.48,0.00013297,2]
[337050901,1725382232166,-827.29,0.00013326,2]
[337050902,1725382232175,-597.96,0.00013337,2]
[337050903,1725382232186,-3791.5065,0.00013847,2]
[337050904,1725382232196,-300.0,0.00013936,2]
[337050905,1725382232207,-14576.47248075,0.00013937,2]
[337050906,1725382232217,-459.4197058,0.00013972,2]
[337050910,1725382232242,-700.0,0.00013972,2]
[337050911,1725382232253,-140.5802942,0.00013972,2]
[337050912,1725382232263,-135.3253458,0.00013972,2]
[337050919,1725382237780,-993.2123051,0.00013972,2]
[337050921,1725382237889,-371.4623491,0.00013972,2]
[337050922,1725382237899,-150.0,0.00014029,2]
[337050923,1725382237909,-321.20748462,0.00014029,2]
[337050924,1725382237919,-190.27144135,0.00014029,2]
[337050925,1725382237928,-105.05872493,0.0001403,2]
[337051048,1725382239925,-642.864357,0.0001403,2]
[337051049,1725382239935,-1428.2992,0.0001403,2]
[337051050,1725382239944,-20357.9603,0.0001403,2]
[337051051,1725382239954,-42706.0,0.00014037,2]
[337051052,1725382239965,-190.27144134,0.00014051,2]
[337051053,1725382239975,-827.9067,0.00014052,2]
[337051054,1725382239984,-747.92308192,0.00014055,2]
[337051055,1725382239994,-190.27144134,0.00014073,2]
[337051056,1725382240003,-747.92308192,0.00014079,2]
[337051057,1725382240012,-1500.0,0.0001409,2]
[337051058,1725382240021,-190.27144134,0.00014096,2]
[337051059,1725382240032,-1500.0,0.00014102,2]
[337051060,1725382240042,-1321.17248938,0.00014106,2]
[337051061,1725382240052,-1500.0,0.00014107,2]
[337051062,1725382240061,-190.27144134,0.00014118,2]
[337051063,1725382240070,-296.85968181,0.00014119,2]
[337051064,1725382240084,-1500.0,0.00014124,2]
[337051065,1725382240094,-1500.0,0.00014124,2]
[337051066,1725382240104,-150.0,0.00014125,2]
[337051067,1725382240115,-287.59430501,0.00014127,2]
[337051068,1725382240130,-1152.53,0.00014128,2]
[337051069,1725382240140,-518.94,0.00014128,2]
[337051070,1725382240151,-574.65,0.00014128,2]
[337051071,1725382240161,-1709.93,0.00014129,2]
[337051072,1725382240170,-500.0,0.00014129,2]
[337051073,1725382240179,-500.0,0.00014129,2]
[337051074,1725382240188,-500.0,0.00014129,2]
[337051075,1725382240197,-500.0,0.00014129,2]
[337051077,1725382240206,-1617.19,0.00014129,2]
[337051078,1725382240215,-813.01,0.00014129,2]
[337051079,1725382240226,-500.0,0.00014129,2]
[337051080,1725382240236,-795.62,0.00014129,2]
[337051081,1725382240245,-886.99,0.00014129,2]
[337051082,1725382240255,-500.0,0.00014129,2]
[337051084,1725382240264,-794.69,0.00014129,2]
[337051085,1725382240274,-1499.24,0.00014129,2]
[337051086,1725382240284,-846.94,0.00014129,2]
[337051087,1725382240293,-809.92,0.00014129,2]
[337051088,1725382240302,-500.0,0.00014129,2]
[337051089,1725382240311,-500.0,0.00014129,2]
[337051090,1725382240321,-500.0,0.00014129,2]
[337051091,1725382240331,-1372.31,0.00014129,2]
[337051092,1725382240341,-500.0,0.00014129,2]
[337051093,1725382240350,-2063.24,0.00014129,2]
[337051094,1725382240360,-500.0,0.00014129,2]
[337051095,1725382240370,-1083.66,0.00014129,2]
[337051096,1725382240379,-1083.66,0.00014129,2]
[337051097,1725382240390,-4767.04,0.00014129,2]
[337051098,1725382240399,-1033.61,0.00014129,2]
[337051099,1725382240409,-1074.79,0.00014129,2]
[337051100,1725382240419,-5493.63,0.00014129,2]
[337051101,1725382240430,-11981.45,0.00014129,2]
[337051102,1725382240440,-1964.96,0.00014129,2]
[337051103,1725382240450,-1964.96,0.00014129,2]
[337051104,1725382240459,-2120.5,0.00014129,2]
[337051105,1725382240468,-500.0,0.00014129,2]
[337051106,1725382240480,-2169.88,0.00014129,2]
[337051107,1725382240490,-898.75,0.00014129,2]
[337051108,1725382240500,-1019.0,0.00014129,2]
[337051109,1725382240509,-898.75,0.00014129,2]
[337051110,1725382240519,-500.0,0.00014129,2]
[337051111,1725382240528,-1141.43,0.00014129,2]
[337051112,1725382240539,-3393.98,0.00014129,2]
[337051113,1725382240548,-614.97,0.00014129,2]
[337051114,1725382240557,-712.85,0.00014129,2]
[337051115,1725382240566,-614.97,0.00014129,2]
[337051116,1725382240576,-3496.4,0.00014129,2]
[337051117,1725382240585,-500.0,0.00014129,2]
[337051118,1725382240596,-500.0,0.00014129,2]
[337051119,1725382240605,-4595.41,0.00014129,2]
[337051120,1725382240615,-4595.41,0.00014129,2]
[337051121,1725382240625,-500.0,0.00014129,2]
[337051122,1725382240634,-5385.1,0.00014129,2]
[337051123,1725382240643,-500.0,0.00014129,2]
[337051124,1725382240652,-15004.46,0.00014129,2]
[337051125,1725382240663,-500.0,0.00014129,2]
[337051126,1725382240673,-11088.82,0.00014129,2]
[337051127,1725382240684,-11088.82,0.00014129,2]
[337051128,1725382240693,-246.03088461,0.00014129,2]
[337051129,1725382240704,-4940.71,0.00014129,2]
[337051130,1725382240713,-500.0,0.00014129,2]
[337051131,1725382240722,-6235.3,0.00014129,2]
[337051132,1725382240731,-5032.85,0.00014129,2]
[337051133,1725382240740,-95666.95,0.00014129,2]
[337051134,1725382240750,-602.2,0.00014129,2]
[337051135,1725382240759,-6567.87,0.00014129,2]
[337051136,1725382240769,-1152.53,0.00014129,2]
[337051137,1725382240778,-1194.11,0.00014129,2]
[337051138,1725382240788,-919.69,0.00014129,2]
[337051139,1725382240798,-1022.0,0.00014129,2]
[337051140,1725382240807,-8930.72836531,0.00014129,2]
[337051141,1725382240828,-663.32551888,0.00014129,2]
[337051142,1725382240840,-34.31611581,0.00014129,2]
[337051143,1725382240849,-544.77688419,0.00014129,2]
[337051144,1725382240860,-451.79311581,0.00014129,2]
[337051145,1725382240870,-66.63088419,0.00014129,2]
[337051195,1725382246002,-433.36911581,0.00014129,2]
[337051196,1725382246011,-500.0,0.00014129,2]
[337051197,1725382246021,-749.99,0.00014129,2]
[337051198,1725382246030,-559.07,0.00014129,2]
[337051199,1725382246044,-2502.05,0.00014129,2]
[337051200,1725382246054,-2321.04,0.00014129,2]
[337051201,1725382246064,-500.0,0.00014129,2]
[337051202,1725382246073,-764.1,0.00014129,2]
[337051203,1725382246097,-5428.13,0.00014129,2]
[337051204,1725382246107,-869.75088419,0.00014129,2]
[337051205,1725382246139,-4558.37911581,0.00014129,2]
[337051206,1725382246149,-500.0,0.00014129,2]
[337051207,1725382246163,-500.0,0.00014129,2]
[337051208,1725382246174,-3671.39,0.00014129,2]
[337051209,1725382246184,-500.0,0.00014129,2]
[337051210,1725382246194,-4559.47,0.00014129,2]
[337051211,1725382246204,-3454.06,0.00014129,2]
[337051212,1725382246214,-3454.06,0.00014129,2]
[337051213,1725382246224,-9883.56,0.00014129,2]
[337051214,1725382246234,-500.0,0.00014129,2]
[337051215,1725382246243,-500.0,0.00014129,2]
[337051216,1725382246253,-8443.53,0.00014129,2]
[337051217,1725382246263,-518.94,0.00014129,2]
[337051218,1725382246273,-500.0,0.00014129,2]